lending/lending_fUSD_20240504
["ID","MTS","AMOUNT","RATE_DAILY","PERIOD"]
[325400760,1714833047198,-500.0,0.00019,2]
[325400761,1714833047207,-500.0,0.00019,2]
[325400762,1714833047217,-500.0,0.00019,2]
[325400763,1714833047228,-500.0,0.00019,2]
[325400764,1714833047237,-500.0,0.00019,2]
[325400765,1714833047247,-500.0,0.00019,2]
[325400766,1714833047257,-500.0,0.00019,2]
[325400767,1714833047267,-500.0,0.00019,2]
[325400768,1714833047276,-500.0,0.00019,2]
[325400769,1714833047285,-500.0,0.00019,2]
[325400770,1714833047295,-500.0,0.00019,2]
[325400771,1714833047305,-500.0,0.00019,2]
[325400772,1714833047314,-500.0,0.00019,2]
[325400773,1714833047324,-500.0,0.00019,2]
[325400774,1714833047333,-500.0,0.00019,2]
[325400775,1714833047343,-500.0,0.00019,2]
[325400776,1714833047354,-429.41,0.00019,2]
[325400777,1714833047365,-500.0,0.00019,2]
[325400778,1714833047375,-2100.0,0.00019016,2]
[325400779,1714833047383,-8510.71240222,0.00019143,2]
[325400780,1714833047393,-5878.76557485,0.00019143,2]
[325400781,1714833047402,-500.0,0.00019178,2]
[325400782,1714833047411,-413.94302498,0.00019178,2]
[325400783,1714833047420,-500.0,0.00019178,2]
[325400784,1714833047429,-613.74105597,0.00019178,2]
[325400785,1714833047440,-500.0,0.00019178,2]
[325400786,1714833047450,-223.62795639,0.00019178,2]
[325400787,1714833047460,-151.0,0.00019178,2]
[325400788,1714833047470,-151.0,0.00019178,2]
[325400789,1714833047479,-264.5824,0.00019178,2]
[325400790,1714833047490,-1747.9,0.00019178,2]
[325400791,1714833047499,-160.243981,0.00019178,2]
[325400792,1714833047509,-160.243981,0.00019178,2]
[325400793,1714833047518,-160.243981,0.00019178,2]
[325400794,1714833047528,-160.243981,0.00019178,2]
[325400795,1714833047538,-160.243981,0.00019178,2]
[325400796,1714833047548,-160.243981,0.00019178,2]
[325400797,1714833047557,-160.243981,0.00019178,2]
[325400798,1714833047567,-160.243981,0.00019178,2]
[325400799,1714833047576,-160.243981,0.00019178,2]
[325400800,1714833047586,-160.243981,0.00019178,2]
[325400801,1714833047595,-160.243981,0.00019178,2]
[325400802,1714833047605,-160.243981,0.00019178,2]
[325400803,1714833047616,-160.243981,0.00019178,2]
[325400804,1714833047626,-160.243981,0.00019178,2]
[325400805,1714833047635,-160.243981,0.00019178,2]
[325400806,1714833047644,-160.243981,0.00019178,2]
[325400807,1714833047654,-160.243981,0.00019178,2]
[325400808,1714833047663,-160.243981,0.00019178,2]
[325400809,1714833047673,-160.243981,0.00019178,2]
[325400810,1714833047682,-160.243975,0.00019178,2]
[325400811,1714833047692,-153.335942,0.00019178,2]
[325400812,1714833047701,-332.71,0.000192,2]
[325400813,1714833047711,-157.71,0.000192,2]
[325400814,1714833047720,-414.44,0.0001939,2]
[325400815,1714833047730,-414.44,0.0001939,2]
[325400816,1714833047739,-414.44,0.0001939,2]
[325400817,1714833047748,-911.73,0.0001939,2]
[325400818,1714833047758,-911.73,0.0001939,2]
[325400819,1714833047767,-911.73,0.0001939,2]
[325400820,1714833047777,-911.73,0.0001939,2]
[325400821,1714833047787,-911.73,0.0001939,2]
[325400822,1714833047797,-873.03966947,0.000195,2]
[325400823,1714833047807,-414.44,0.000195,2]
[325400824,1714833047816,-1172.0,0.0001956,15]
[325400825,1714833047826,-940.0,0.0001956,15]
[325400826,1714833047837,-150.5,0.0001957,15]
[325400827,1714833047847,-1172.0,0.0001957,15]
[325400828,1714833047857,-940.0,0.0001957,15]
[325400829,1714833047868,-150.5,0.0001958,15]
[325400830,1714833047878,-1172.0,0.0001958,15]
[325400831,1714833047888,-940.0,0.0001958,15]
[325400832,1714833047897,-150.5,0.0001959,15]
[325400833,1714833047907,-1071.41159359,0.000196,2]
[325400834,1714833047917,-1030.94670395,0.000196,2]
[325400835,1714833047927,-1089.20788612,0.000196,2]
[325400836,1714833048733,-151.0,0.00019178,2]
[325400837,1714833048743,-147.56134443,0.000196,2]
[325400850,1714834231701,-820.822,0.0001187,2]
[325400851,1714834231849,-501.83025118,0.0001187,2]
[325400879,1714834237707,-8081.83188466,0.0001187,2]
[325400880,1714834237819,-10057.21070646,0.0001187,2]
[325400881,1714834237829,-4421.757422,0.00011871,2]
[325400882,1714834237838,-104111.86575899,0.00011931,2]
[325400883,1714834237848,-4187.808,0.00011931,2]
[325400884,1714834237857,-1000.0,0.00012,2]
[325400885,1714834237867,-22404.87166643,0.000129,2]
[325400886,1714834237878,-94.01683357,0.000129,2]
[325400887,1714834237887,-281.94220496,0.00014,2]
[325400888,1714834237897,-5708.0,0.00015,2]
[325400889,1714834237906,-796.0,0.00015,2]
[325400890,1714834237916,-1749.0834379,0.00016,2]
[325400891,1714834237925,-1224.97705227,0.000165,2]
[325400892,1714834237935,-462.9,0.00016529,3]
[325400893,1714834237944,-175.31,0.00016712,2]
[325400894,1714834237954,-4115.13590244,0.0001788,2]
[325400895,1714834237963,-4115.13590239,0.0001788,2]
[325400896,1714834237973,-5957.49868159,0.0001788,2]
[325400897,1714834237983,-450.0,0.00018,3]
[325400898,1714834237993,-485.76,0.00018292,2]
[325400899,1714834238002,-250.0,0.0001831,2]
[325400900,1714834238012,-500.0,0.00018324,2]
[325400901,1714834238021,-1000.0,0.00018362,2]
[325400902,1714834238031,-150.0,0.00018371,2]
[325400903,1714834238040,-380.73,0.00018381,2]
[325400904,1714834238050,-200.0,0.00018394,2]
[325400905,1714834238059,-169.25,0.00018401,2]
[325400906,1714834238068,-462.9,0.00018862,3]
[325400907,1714834238077,-3333.08548488,0.00019,5]
[325400910,1714834239862,-331.2239598,0.0001788,2]
[325400911,1714834239874,-2239.63,0.0001788,2]
[325400912,1714834240048,-783.33767669,0.0001788,2]
[325400913,1714834240059,-934.85,0.0001788,2]
[325400914,1714834240071,-1668.45704506,0.0001788,2]
[325400915,1714834240080,-1867.9857821,0.00019,5]
[325400916,1714834240091,-874.40717284,0.00019,5]
[325400926,1714834242743,-616.64430062,0.00019,5]
[325400927,1714834242960,-5869.37159544,0.00019,5]
[325400928,1714834242972,-2955.67955936,0.00019,5]
[325400929,1714834243313,-589.0156802,0.00019,5]
[325400937,1714834245736,-582.95282484,0.00019,5]
[325400938,1714834245747,-484.12231679,0.00019178,2]
[325400939,1714834245757,-177.40415356,0.00019178,2]
[325400940,1714834245767,-1560.03868352,0.00019227,2]
[325400941,1714834245776,-483.21,0.00019377,2]
[325400942,1714834245786,-350.77,0.00019377,2]
[325400943,1714834245796,-2934.25382374,0.00019417,2]
[325400944,1714834245805,-1083.1648402,0.00019587,2]
[325400945,1714834245815,-156.72,0.0001959,2]
[325400946,1714834245824,-629.28579056,0.00019599,2]
[325400947,1714834245833,-500.0,0.000196,2]
[325400948,1714834245843,-37405.34258539,0.000196,2]
[325400949,1714834245852,-1041.33176482,0.000196,2]
[325400950,1714834245862,-167.62462793,0.000196,2]
[325400951,1714834245871,-1037.08776167,0.000196,2]
[325400952,1714834245880,-484.0,0.000196,2]
[325400953,1714834245890,-500.0,0.000196,2]
[325400954,1714834245899,-500.0,0.000196,2]
[325400955,1714834245908,-500.0,0.000196,2]
[325400956,1714834245918,-500.0,0.000196,2]
[325400957,1714834245927,-500.0,0.000196,2]
[325400958,1714834245936,-500.0,0.000196,2]
[325400959,1714834245946,-500.0,0.000196,2]
[325400960,1714834245955,-500.0,0.000196,2]
[325400961,1714834245965,-500.0,0.000196,2]
[325400962,1714834245974,-500.0,0.000196,2]
[325400963,1714834245983,-3000.0,0.000196,2]
[325400964,1714834245993,-500.0,0.000196,2]
[325400965,1714834246002,-500.0,0.000196,2]
[325400966,1714834246011,-2100.0,0.00019616,2]
[325400967,1714834246022,-150.0,0.00019696,2]
[325400968,1714834246031,-629.69082697,0.00019703,8]
[325400969,1714834246043,-262.07440524,0.00019703,8]
[325400970,1714834246060,-1433.36570529,0.00019703,8]
[325400971,1714834246071,-150.0,0.00019711,2]
[325400972,1714834246081,-150.0,0.00019712,2]
[325400973,1714834246091,-150.0,0.00019721,2]
[325400974,1714834246100,-14.86810515,0.00019722,2]
[325400975,1714834246136,-135.13189485,0.00019722,2]
[325400976,1714834246146,-150.0,0.00019723,2]
[325400977,1714834246156,-237.80663752,0.00019726,2]
[325400978,1714834246178,-562.19336248,0.00019726,2]
[325400979,1714834246188,-150.0,0.00019728,2]
[325400980,1714834246197,-150.0,0.00019729,2]
[325400981,1714834246207,-150.0,0.00019734,2]
[325400982,1714834246217,-150.0,0.00019735,2]
[325400983,1714834246227,-26.15663752,0.00019736,2]
[325400984,1714834246289,-123.84336248,0.00019736,2]
[325400985,1714834246299,-150.0,0.00019739,2]
[325400986,1714834246308,-150.0,0.00019744,2]
[325400987,1714834246317,-150.0,0.00019748,2]
[325400988,1714834246327,-150.0,0.0001975,2]
[325400989,1714834246336,-150.0,0.00019753,2]
[325400990,1714834246346,-800.0,0.00019753,2]
[325400991,1714834246356,-150.0,0.00019754,2]
[325400992,1714834246366,-150.0,0.00019755,2]
[325400993,1714834246375,-150.0,0.00019758,2]
[325400994,1714834246385,-150.0,0.0001976,2]
[325400995,1714834246395,-150.0,0.00019761,2]
[325400996,1714834246406,-150.0,0.00019768,2]
[325400997,1714834246417,-150.0,0.0001977,2]
[325400998,1714834246427,-150.0,0.0001977,2]
[325400999,1714834246436,-150.0,0.00019773,2]
[325401000,1714834246447,-150.0,0.00019774,2]
[325401001,1714834246459,-150.0,0.00019778,2]
[325401002,1714834246469,-150.0,0.0001978,2]
[325401003,1714834246480,-150.0,0.00019781,2]
[325401004,1714834246491,-150.0,0.00019782,2]
[325401005,1714834246501,-150.0,0.00019783,2]
[325401006,1714834246511,-150.0,0.00019786,2]
[325401007,1714834246521,-183.33964055,0.00019787,2]
[325401008,1714834246530,-150.0,0.00019794,2]
[325401009,1714834246540,-617.74433242,0.00019799,2]
[325401010,1714834246551,-112689.15266458,0.000198,2]
[325401011,1714834246564,-1282.04733757,0.000198,2]
[325401059,1714835432026,-200.0,0.000125,4]
[325401060,1714835432036,-500.0,0.000126,4]
[325401061,1714835432046,-129.72,0.000127,4]
[325401062,1714835432059,-670.28,0.000127,4]
[325401063,1714835432069,-6754.5911,0.000128,2]
[325401064,1714835432079,-1100.0,0.000128,4]
[325401065,1714835432089,-240.79182073,0.00012899,2]
[325401066,1714835432098,-8234.14521874,0.000129,2]
[325401067,1714835432107,-7490.14924032,0.000129,2]
[325401171,1714835438243,-31990.7745,0.000129,2]
[325401174,1714835440099,-6664.54766575,0.000129,2]
[325401175,1714835440112,-726.04149393,0.000129,2]
[325401176,1714835440122,-1876.79560128,0.000129,2]
[325401177,1714835440251,-1076.10975983,0.000129,2]
[325401178,1714835440263,-388.62965703,0.000129,2]
[325401413,1714835497588,2543.7567469,9.675e-05,2]
[325401415,1714835515592,2543.7567469,9.675e-05,2]
[325401417,1714835537619,2543.7567469,9.675e-05,2]
[325401418,1714835555602,2543.7567469,7.256e-05,2]
[325401419,1714835577613,2543.7567469,7.256e-05,2]
[325401420,1714835597620,2543.7567469,7.256e-05,2]
[325401421,1714835617612,2543.7567469,5.442e-05,2]
[325401422,1714835635611,2543.7567469,5.442e-05,2]
[325401423,1714835657625,2543.7567469,4.082e-05,2]
[325401424,1714835679631,2543.7567469,4.082e-05,2]
[325401425,1714835695634,748.91971319,4.082e-05,2]
[325401427,1714835734056,155.45555165,5e-05,2]
[325401430,1714835813644,300.0,9.675e-05,2]
[325401431,1714835814056,300.0,9.675e-05,2]
[325401432,1714835814380,300.0,9.675e-05,2]
[325401433,1714835814732,300.0,9.675e-05,2]
[325401434,1714835815089,300.0,9.675e-05,2]
[325401435,1714835815452,300.0,9.675e-05,2]
[325401436,1714835815840,300.0,9.675e-05,2]
[325401437,1714835816198,365.0,9.675e-05,2]
[325401441,1714835915473,3126.22435756,9.675e-05,2]
[325401443,1714835972243,185.86,9.876e-05,2]
[325401453,1714836346924,378.26895946,0.0001,2]
[325401454,1714836406141,366.07058041,0.0001,2]
[325401486,1714836632660,-150.0,0.00010993,2]
[325401487,1714836632670,-402.67791872,0.00011386,2]
[325401488,1714836638357,-4.7417614,0.00011386,2]
[325401489,1714836638367,-536.56930293,0.00011387,2]
[325401490,1714836638376,-418.54446425,0.00011392,2]
[325401491,1714836638390,-732.55553575,0.00011392,2]
[325401492,1714836638399,-491.57,0.00011396,2]
[325401493,1714836638409,-1980.60514166,0.00011404,2]
[325401494,1714836638423,-2208.1150035,0.00011404,2]
[325401495,1714836638437,-768.81954782,0.00011404,2]
[325401496,1714836638448,-9987.23755261,0.00011404,2]
[325401498,1714836638459,-2339.72894746,0.00011404,2]
[325401499,1714836638468,-657.32,0.00011405,2]
[325401501,1714836638477,-4417.37,0.00011405,2]
[325401503,1714836638487,-304.58,0.00011408,2]
[325401505,1714836638497,-200.0,0.00011425,2]
[325401507,1714836638506,-441.48,0.0001147,2]
[325401509,1714836638518,-3316.63,0.0001147,2]
[325401511,1714836638527,-250.0,0.00011472,2]
[325401513,1714836638537,-150.0,0.00011688,2]
[325401515,1714836638546,-1084.67,0.00011688,2]
[325401517,1714836638556,-341.93,0.00011688,2]
[325401518,1714836638565,-604.62,0.0001184,2]
[325401519,1714836638574,-21563.7439934,0.00011843,2]
[325401520,1714836638583,-6045.56,0.00011845,4]
[325401521,1714836638592,-697.4248,0.00011859,2]
[325401522,1714836638602,-156.86,0.00011874,2]
[325401523,1714836638611,-156.86,0.00011907,2]
[325401524,1714836638620,-2457.39,0.00011907,2]
[325401525,1714836638630,-156.86,0.00011939,2]
[325401526,1714836638639,-22657.2419372,0.00011959,2]
[325401527,1714836638648,-156.86,0.00011972,2]
[325401528,1714836638658,-156.86,0.00012004,2]
[325401529,1714836638667,-1000.0,0.00012015,2]
[325401530,1714836638676,-156.86,0.00012037,2]
[325401531,1714836638685,-156.86,0.00012069,2]
[325401532,1714836638695,-250.0,0.00012097,2]
[325401533,1714836638704,-156.86,0.00012102,2]
[325401534,1714836638713,-156.86,0.00012135,2]
[325401535,1714836638723,-156.86,0.00012167,2]
[325401536,1714836638732,-156.86,0.000122,2]
[325401537,1714836638742,-156.86,0.00012232,2]
[325401538,1714836638751,-156.86,0.00012265,2]
[325401539,1714836638762,-156.86,0.00012298,2]
[325401540,1714836638771,-156.86,0.0001233,2]
[325401541,1714836638781,-1388.71856758,0.00012348,2]
[325401542,1714836638791,-156.86,0.00012363,2]
[325401543,1714836638800,-156.86,0.00012395,2]
[325401544,1714836638809,-156.86,0.00012428,2]
[325401545,1714836638819,-156.86,0.0001246,2]
[325401546,1714836638828,-156.86,0.00012493,2]
[325401547,1714836638837,-153.05,0.00012494,2]
[325401548,1714836638847,-600.0,0.000125,4]
[325401549,1714836638856,-200.0,0.000125,4]
[325401550,1714836638866,-1300.0,0.000126,4]
[325401551,1714836638875,-500.0,0.000126,4]
[325401552,1714836638885,-382.95277325,0.00012686,2]
[325401553,1714836638894,-1900.0,0.000127,4]
[325401554,1714836638904,-800.0,0.000127,4]
[325401555,1714836638914,-2600.0,0.000128,4]
[325401556,1714836638923,-1100.0,0.000128,4]
[325401557,1714836638932,-3497.19944605,0.00012816,2]
[325401558,1714836638942,-150.0,0.00012829,2]
[325401559,1714836638951,-304.58,0.00012834,2]
[325401560,1714836638961,-250.36936653,0.00012836,2]
[325401561,1714836639223,-450.0,0.00012886,2]
[325401562,1714836639235,-225.59221538,0.00012898,2]
[325401563,1714836639245,-281.62325583,0.00012898,2]
[325401564,1714836639254,-5210.0,0.00012898,2]
[325401565,1714836639265,-3074.61500758,0.00012899,2]
[325401566,1714836639275,-500.0,0.000129,2]
[325401567,1714836639284,-3378.5697,0.000129,2]
[325401568,1714836639294,-12186.703,0.000129,2]
[325401569,1714836639304,-7547.96645053,0.000129,2]
[325401570,1714836639314,-1447.75704,0.000129,2]
[325401571,1714836639323,-3200.0,0.000129,4]
[325401572,1714836639333,-308.80034224,0.000129,2]
[325401573,1714836639342,-2034.48957033,0.000129,2]
[325401574,1714836639351,-1400.0,0.000129,4]
[325401575,1714836639361,-666.2855,0.000129,2]
[325401576,1714836639381,-1502.8129,0.000129,2]
[325401577,1714836639392,-365.99559021,0.000129,2]
[325401578,1714836639402,-6644.39960948,0.00012959,2]
[325401579,1714836639413,-168.96,0.00012973,2]
[325401580,1714836639423,-173.58541836,0.00012986,2]
[325401581,1714836639432,-160.07,0.0001299,2]
[325401582,1714836639442,-160.07,0.0001299,2]
[325401583,1714836639452,-160.07,0.0001299,2]
[325401584,1714836639462,-160.07,0.0001299,2]
[325401585,1714836639473,-160.07,0.0001299,2]
[325401586,1714836639483,-160.07,0.0001299,2]
[325401587,1714836639493,-427.59691009,0.00012992,2]
[325401588,1714836639503,-498.34120956,0.00012998,2]
[325401589,1714836639513,-377.29102073,0.00012998,2]
[325401590,1714836639524,-155.09758738,0.00012998,2]
[325401591,1714836639534,-527.60952804,0.00012998,2]
[325401592,1714836639545,-1000.0,0.00012999,2]
[325401593,1714836639556,-636.60585362,0.00012999,2]
[325401594,1714836639566,-4142836.9885287,0.00013,2]
[325401597,1714836640306,-637.73,0.00013,2]
[325401598,1714836640846,-6380.0,0.00013,2]
[325401605,1714836643724,-209685.24935707,0.00013,2]
[325401606,1714836643735,-85758.12150564,0.00013,2]
[325401607,1714836643747,-188.60134713,0.00013,2]
[325401608,1714836643759,-17688.0,0.000131,5]
[325401609,1714836643770,-404.8,0.00013425,2]
[325401610,1714836643782,-1000.0,0.00013517,2]
[325401611,1714836643793,-449.981,0.00013562,2]
[325401612,1714836643805,-175.641,0.00013562,2]
[325401613,1714836643816,-500.0,0.00013699,2]
[325401614,1714836643828,-200.0,0.00013699,2]
[325401615,1714836643840,-250.0,0.000137,2]
[325401616,1714836643852,-193.0283978,0.00014,2]
[325401617,1714836643863,-153.32,0.00014,2]
[325401618,1714836643874,-153.32,0.00014,2]
[325401619,1714836643886,-304.58,0.0001426,2]
[325401620,1714836643898,-168.98,0.00014711,2]
[325401621,1714836643909,-806.0,0.00015,2]
[325401622,1714836643921,-5430.0,0.00015,2]
[325401623,1714836643932,-1000.0,0.00015019,2]
[325401624,1714836643944,-7547.96645045,0.00015536,2]
[325401625,1714836643956,-153.05,0.00015618,2]
[325401626,1714836643968,-304.58,0.00015686,2]
[325401627,1714836643979,-150.0,0.00016438,2]
[325401628,1714836643991,-1224.97705227,0.000165,2]
[325401629,1714836644003,-290.70514666,0.00016521,2]
[325401630,1714836644019,-709.29485334,0.00016521,2]
[325401631,1714836644031,-56.35314666,0.000167,3]
[325401670,1714837832224,-150.0,0.0001196,2]
[325401671,1714837832234,-250.0,0.0001196,2]
[325401672,1714837832244,-317.0,0.00011999,2]
[325401673,1714837832254,-254.28799589,0.00012,2]
[325401739,1714837838446,-280.89960365,0.00012,2]
[325401805,1714837840258,-1077.71805683,0.00012,2]
[325401806,1714837840270,-526.09434363,0.00012,2]
[325401807,1714837840280,-938.75949533,0.00012044,2]
[325401808,1714837840482,-5015.0,0.00012044,2]
[325401845,1714837843408,-724.14908828,0.00012044,2]
[325401860,1714837918703,578.64653466,6.94e-05,2]
[325401868,1714838361252,-1661.7342,0.00011902,2]
[325401869,1714838365167,-2217.88907972,0.00011901,2]
[325401870,1714838365189,-391.4458,0.00011902,2]
[325401871,1714838365210,-155.0,0.00011952,2]
[325401872,1714838365231,-1235.66512028,0.00011954,2]
[325401873,1714838365659,-4000.0,0.00011954,2]
[325401874,1714838380675,2128.66223079,6.94e-05,2]
[325401878,1714838515975,3498.38014246,0.00011629,2]
[325401879,1714838584294,150.0,0.00010993,2]
[325401880,1714838640146,351.61985754,0.000117,2]
[325401881,1714838640168,721.38014246,0.000117,2]
[325401882,1714838646640,500.0,0.0001169,2]
[325401883,1714838673634,2778.61985754,0.00011638,2]
[325401884,1714838673655,465.9150477,0.00011638,2]
[325401887,1714838698232,250.0,0.00011677,2]
[325401889,1714838773509,3284.0849523,0.00011674,2]
[325401890,1714838773531,4000.0,0.00011674,2]
[325401920,1714839032318,-866.7628267,0.00011483,2]
[325401924,1714839032519,-176.7271733,0.00011483,2]
[325401925,1714839032529,-244724.62,0.00011483,2]
[325401926,1714839032539,-704.62,0.00011548,2]
[325401927,1714839032548,-6493.2112,0.00011574,2]
[325401928,1714839032557,-3496.01874964,0.00011577,2]
[325401929,1714839032566,-151.44,0.00011662,2]
[325401930,1714839032575,-1560.64174384,0.00011667,2]
[325401931,1714839032585,-168.37,0.00011674,2]
[325401932,1714839032594,-5101.2550477,0.00011674,2]
[325401933,1714839032603,-168.37,0.00011682,2]
[325401934,1714839032612,-150.0,0.00011688,2]
[325401935,1714839032621,-168.37,0.0001169,2]
[325401936,1714839032631,-168.37,0.00011699,2]
[325401937,1714839032639,-168.37,0.00011707,2]
[325401938,1714839032648,-168.37,0.00011715,2]
[325401939,1714839032659,-168.37,0.00011724,2]
[325401940,1714839032669,-168.37,0.00011732,2]
[325401941,1714839032678,-150.0,0.00011737,2]
[325401942,1714839032688,-150.0,0.00011737,2]
[325401943,1714839032697,-1785.11165952,0.00011738,2]
[325401944,1714839032706,-517.9,0.00011739,2]
[325401945,1714839032715,-151.44,0.00011748,2]
[325401946,1714839032725,-200.0,0.00011779,2]
[325401947,1714839032734,-151.44,0.00011835,2]
[325401948,1714839032743,-151.44,0.00011922,2]
[325401949,1714839032752,-6501.38648378,0.0001193,2]
[325401950,1714839032762,-250.0,0.0001196,2]
[325401951,1714839032773,-15310.20859034,0.00012,2]
[325401952,1714839032782,-1000.0,0.00012,2]
[325401953,1714839032791,-151.44,0.00012009,2]
[325401954,1714839032801,-1030.38846551,0.00012034,2]
[325401955,1714839032812,-2216.64210205,0.00012041,2]
[325401956,1714839032821,-5210.91464732,0.00012043,2]
[325401957,1714839032831,-7725.84657727,0.00012044,2]
[325401958,1714839032842,-3000.0,0.00012044,2]
[325401959,1714839032853,-151.44,0.00012096,2]
[325401960,1714839032862,-151.44,0.00012183,2]
[325401961,1714839032871,-1295.14825201,0.00012231,2]
[325401962,1714839032880,-151.44,0.00012269,2]
[325401963,1714839032892,-200.0,0.000125,4]
[325401964,1714839032903,-500.0,0.000126,4]
[325401965,1714839032912,-800.0,0.000127,4]
[325401966,1714839032924,-1000.0,0.000128,4]
[325401967,1714839032935,-3100.0,0.0001285,2]
[325401968,1714839032944,-642.91878868,0.00012876,2]
[325401969,1714839032954,-190.0091,0.000129,2]
[325401970,1714839032964,-1000.0,0.000129,2]
[325401971,1714839032973,-7200.81584387,0.000129,2]
[325401972,1714839032983,-1780.17837403,0.000129,2]
[325401973,1714839032993,-264.0822,0.000129,2]
[325401974,1714839033003,-1300.0,0.000129,4]
[325401975,1714839033014,-308.76784164,0.000129,2]
[325401976,1714839033023,-7500.0,0.000129,2]
[325401977,1714839033032,-806.40716709,0.000129,2]
[325401978,1714839033042,-360.26706594,0.000129,2]
[325401979,1714839033051,-329.80639064,0.000129,2]
[325401980,1714839033060,-243.99706014,0.000129,2]
[325401981,1714839033069,-1000.0,0.000129,2]
[325401982,1714839033078,-171.29,0.0001291,2]
[325401983,1714839033087,-1183.84,0.0001294,2]
[325401984,1714839033095,-6165.828,0.0001294,2]
[325401985,1714839033104,-1183.84,0.00012943,2]
[325401986,1714839033113,-1183.84,0.00012946,2]
[325401987,1714839033122,-1183.84,0.0001295,2]
[325401988,1714839033132,-1183.84,0.00012953,2]
[325401989,1714839033141,-1183.84,0.00012957,2]
[325401990,1714839033150,-1183.84,0.0001296,2]
[325401991,1714839033160,-1183.84,0.00012963,2]
[325401992,1714839033170,-1183.84,0.00012967,2]
[325401993,1714839033180,-1183.84,0.0001297,2]
[325401994,1714839033190,-1183.84,0.00012974,2]
[325401995,1714839033199,-1183.84,0.00012977,2]
[325401996,1714839033211,-1183.84,0.0001298,2]
[325401997,1714839033220,-1183.84,0.00012984,2]
[325401998,1714839033231,-1183.84,0.00012987,2]
[325401999,1714839033241,-1183.84,0.00012991,2]
[325402000,1714839033252,-1183.84,0.00012994,2]
[325402001,1714839033262,-1183.84,0.00012997,2]
[325402002,1714839033272,-200.04066995,0.00012998,2]
[325402003,1714839033281,-200.05451304,0.00012998,2]
[325402004,1714839033291,-2216.99212781,0.00012998,2]
[325402005,1714839033300,-285.87400056,0.00012998,2]
[325402006,1714839033310,-546.05317817,0.00012999,2]
[325402007,1714839033320,-2055.25356005,0.00012999,2]
[325402008,1714839033329,-188.60134713,0.00013,2]
[325402009,1714839033338,-45730.29211084,0.00013,2]
[325402022,1714839039033,-208.08093124,0.000129,2]
[325402023,1714839039043,-602.08134968,0.00013,2]
[325402024,1714839039076,-419.40022823,0.00013,2]
[325402055,1714839043493,-318.51075,0.00013,2]
[325402093,1714840152042,-210.93,0.0001956,15]
[325402094,1714840152062,-658.0,0.0001956,15]
[325402095,1714840152083,-820.0,0.0001957,15]
[325402096,1714840152103,-150.5,0.0001957,15]
[325402097,1714840152125,-658.0,0.0001957,15]
[325402098,1714840152146,-820.0,0.0001958,15]
[325402099,1714840152170,-150.5,0.0001958,15]
[325402100,1714840152192,-658.0,0.0001958,15]
[325402101,1714840152213,-187.62,0.0001958,15]
[325402102,1714840152235,-820.0,0.0001959,15]
[325402180,1714840232598,-165.81,0.0001196,2]
[325402182,1714840232607,-250.0,0.0001196,2]
[325402184,1714840232617,-84.19,0.00012769,2]
[325402199,1714840237586,-420.42973759,0.00012769,2]
[325402200,1714840237757,-637.37725966,0.00012769,2]
[325402223,1714840239763,-508.202863,0.00012769,2]
[325402224,1714840239772,-1559.4356232,0.00012771,2]
[325402225,1714840239782,-184.26389926,0.000128,2]
[325402226,1714840239791,-1229.6258,0.0001289,2]